fUST/lending_fUST_20240418
["ID","MTS","AMOUNT","RATE_DAILY","PERIOD"]
[322836899,1713379651443,-150.84915085,0.00031504,2]
[322836900,1713379651464,-166.666666,0.00031542,2]
[322836901,1713379651485,-400.0,0.00031617,2]
[322836902,1713379651506,-400.0,0.00031617,2]
[322836903,1713379651529,-14592.5779964,0.00031618,2]
[322836904,1713379651549,-264.10306278,0.000319,2]
[322836905,1713379651570,-288.0,0.00032,2]
[322836906,1713379651596,-5000.0,0.00032,2]
[322836907,1713379651616,-201.0,0.00032,7]
[322836908,1713379651645,-191.18536531,0.00032,4]
[322836909,1713379651668,-264.10306272,0.00032025,2]
[322836910,1713379651688,-1000.0,0.00032088,2]
[322836911,1713379651708,-168.966404,0.00032112,2]
[322836912,1713379651728,-264.10306272,0.0003215,2]
[322836913,1713379651750,-220.3956989,0.00032232,2]
[322836914,1713379651769,-166.666666,0.00032402,2]
[322836915,1713379651788,-200.0,0.00032494,2]
[322836916,1713379651808,-82.50885407,0.000325,2]
[322836986,1713379832181,-188.96976676,0.00027292,2]
[322836988,1713379832191,-354.39971412,0.00027293,2]
[322836991,1713379832200,-243.24834116,0.00027293,2]
[322836993,1713379832209,-731.86390733,0.00027293,2]
[322837054,1713379838133,-536.68259521,0.00027291,2]
[322837086,1713379840273,-86.40102599,0.00027291,2]
[322837087,1713379840284,-713.85396089,0.00027293,2]
[322837106,1713379843591,-353.87296082,0.00027293,2]
[322837107,1713379843604,-6058.96284374,0.00027293,2]
[322837108,1713379843613,-937.89373734,0.00027294,2]
[322837109,1713379843623,-351.3027513,0.00027295,2]
[322837110,1713379843635,-472.67949986,0.00027296,3]
[322837111,1713379843645,-305.37163019,0.00027296,2]
[322837112,1713379843655,-300.0,0.00027394,2]
[322837114,1713379843665,-262.0,0.00027394,2]
[322837116,1713379843675,-521.03498526,0.00027394,2]
[322837117,1713379843685,-539.22318272,0.00027394,2]
[322837118,1713379843694,-32232.18520139,0.00027395,2]
[322837141,1713379846944,-3525.95868584,0.00027395,2]
[322837142,1713379846954,-24592.14537706,0.00027396,2]
[322837143,1713379846964,-204.855635,0.00027397,2]
[322837144,1713379846973,-800.8369821,0.000275,17]
[322837145,1713379846982,-332.07459253,0.00029899,2]
[322837146,1713379846991,-1027.63726285,0.000299,2]
[322837147,1713379847001,-420.0,0.00030134,2]
[322837148,1713379847012,-320.4553623,0.00031993,10]
[322837149,1713379847021,-213.436124,0.00031994,4]
[322837150,1713379847032,-5000.0,0.00032,2]
[322837151,1713379847042,-191.18536531,0.00032274,4]
[322837152,1713379847051,-264.10306272,0.00032275,2]
[322837153,1713379847060,-203.78682697,0.00032296,4]
[322837154,1713379847072,-169.570511,0.0003234,2]
[322837155,1713379847081,-264.10306272,0.000324,2]
[322837156,1713379847091,-500.0,0.00032499,2]
[322837157,1713379847101,-500.0,0.00032499,2]
[322837158,1713379847110,-423.53327608,0.00032499,2]
[322837159,1713379847120,-500.0,0.00032499,2]
[322837160,1713379847130,-500.0,0.00032499,2]
[322837161,1713379847139,-500.0,0.00032499,2]
[322837162,1713379847148,-500.0,0.00032499,2]
[322837163,1713379847158,-308.43308458,0.00032499,2]
[322837164,1713379847167,-370.0,0.000325,2]
[322837165,1713379847177,-4114.8754052,0.000325,2]
[322837166,1713379847187,-13573.22935182,0.000325,7]
[322837167,1713379847196,-1014.98909932,0.000325,4]
[322837168,1713379847205,-154.86062544,0.000325,4]
[322837169,1713379847215,-4848.21770199,0.000325,5]
[322837170,1713379847224,-264.10306272,0.00032525,2]
[322837171,1713379847235,-264.10306272,0.0003265,2]
[322837172,1713379847245,-264.10306272,0.00032775,2]
[322837173,1713379847254,-5200.0,0.000329,9]
[322837174,1713379847264,-264.10306272,0.000329,2]
[322837175,1713379847273,-264.10306272,0.00033025,2]
[322837176,1713379847283,-587.0,0.00033147,2]
[322837177,1713379847293,-264.10306272,0.0003315,3]
[322837178,1713379847301,-353.507292,0.00033165,2]
[322837179,1713379847310,-204.855635,0.00033165,2]
[322837180,1713379847320,-607.33413395,0.00033248,4]
[322837181,1713379847329,-166.666666,0.00033262,2]
[322837182,1713379847339,-264.10306272,0.00033275,3]
[322837183,1713379847348,-264.10306272,0.000334,3]
[322837184,1713379847357,-264.10306272,0.00033525,3]
[322837185,1713379847367,-264.10306272,0.0003365,4]
[322837186,1713379847376,-2000.0,0.000337,7]
[322837187,1713379847385,-264.10306272,0.00033775,4]
[322837188,1713379847395,-2000.0,0.000339,2]
[322837189,1713379847404,-212.46184594,0.000339,2]
[322837190,1713379847414,-264.10306272,0.000339,4]
[322837191,1713379847424,-772.31889104,0.00033962,4]
[322837192,1713379847433,-417.0,0.00033967,2]
[322837193,1713379847443,-476.16084431,0.00033995,4]
[322837194,1713379847453,-178.20819793,0.00033996,4]
[322837195,1713379847462,-710.44801962,0.00033996,4]
[322837196,1713379847472,-314.36819107,0.00033996,4]
[322837197,1713379847481,-953.73793423,0.00033996,4]
[322837198,1713379847491,-156.20491077,0.00033996,4]
[322837199,1713379847500,-465.54275038,0.00033996,2]
[322837200,1713379847510,-18764.81118994,0.00033996,4]
[322837201,1713379847519,-1028.97723922,0.00033996,4]
[322837202,1713379847529,-357.47789926,0.00033996,4]
[322837203,1713379847539,-186.95407384,0.00033996,4]
[322837204,1713379847551,-210.92219345,0.00033996,4]
[322837205,1713379847561,-253.89412041,0.00033996,2]
[322837206,1713379847571,-2096.98803724,0.00033997,4]
[322837207,1713379847580,-1548.91382456,0.00033998,4]
[322837208,1713379847590,-154.87609912,0.00033998,2]
[322837209,1713379847600,-161.84978394,0.00033998,4]
[322837210,1713379847609,-1029.79547581,0.00033998,4]
[322837211,1713379847618,-653.04432347,0.00033998,4]
[322837212,1713379847627,-2086.08257242,0.00033999,2]
[322837213,1713379847641,-7195.45794981,0.00033999,2]
[322837214,1713379847651,-542.94344038,0.00033999,7]
[322837215,1713379847660,-500.0,0.00033999,7]
[322837216,1713379847669,-500.0,0.00033999,7]
[322837217,1713379847679,-204.52438815,0.00033999,7]
[322837218,1713379847689,-163.65064879,0.00033999,7]
[322837219,1713379847698,-277.39836437,0.00033999,7]
[322837220,1713379847708,-500.0,0.00033999,7]
[322837221,1713379847717,-500.0,0.00033999,7]
[322837222,1713379847727,-500.0,0.00033999,7]
[322837223,1713379847736,-500.0,0.00033999,7]
[322837224,1713379847746,-500.0,0.00033999,7]
[322837225,1713379847757,-500.0,0.00033999,7]
[322837226,1713379847766,-500.0,0.00033999,7]
[322837227,1713379847776,-1000.0,0.00034,34]
[322837228,1713379847786,-801.61786343,0.00034,2]
[322837229,1713379847796,-11890.07744525,0.00034,2]
[322837263,1713379951511,-152445.68491715,0.000325,30]
[322837264,1713379951541,-803.65147083,0.00033998,33]
[322837265,1713379951569,-150.0,0.0003456,120]
[322837266,1713379951597,-41485.07672256,0.00035,30]
[322837267,1713379951627,-1000.0,0.00035,35]
[322837268,1713379951654,-165.0,0.00035424,35]
[322837269,1713379951682,-156.0,0.00035426,35]
[322837270,1713379951708,-165.0,0.00035434,35]
[322837271,1713379951735,-156.0,0.00035436,35]
[322837272,1713379951760,-165.0,0.00035444,35]
[322837273,1713379951785,-156.0,0.00035446,35]
[322837274,1713379951952,-2963.0,0.000355,32]
[322837275,1713379951978,-1381.516038,0.00035616,120]
[322837276,1713379952006,-1306.0,0.00035769,35]
[322837277,1713379952031,-150.5,0.00035769,35]
[322837278,1713379952056,-1306.0,0.00035779,35]
[322837279,1713379952081,-150.5,0.00035779,35]
[322837280,1713379952106,-150.5,0.00035789,35]
[322837281,1713379952136,-1306.0,0.00035789,35]
[322837282,1713379952160,-151.32,0.0003597,35]
[322837283,1713379952184,-150.5,0.0003598,35]
[322837284,1713379952209,-213.75,0.0003598,35]
[322837285,1713379952233,-150.5,0.0003599,35]
[322837286,1713379952268,-175.32,0.0003599,35]
[322837287,1713379952297,-150.5,0.0003599,35]
[322837288,1713379952327,-19023.82679372,0.00037,40]
[322837289,1713379952354,-1206.79320679,0.00037107,30]
[322837290,1713379952385,-3000.0,0.000375,32]
[322837291,1713379952411,-3000.0,0.0003751,32]
[322837292,1713379952438,-3000.0,0.0003752,32]
[322837293,1713379952463,-3000.0,0.0003753,32]
[322837294,1713379952490,-3000.0,0.0003754,32]
[322837295,1713379952665,-3000.0,0.0003755,32]
[322837296,1713379952695,-3000.0,0.0003756,32]
[322837297,1713379952724,-3000.0,0.0003757,32]
[322837298,1713379952749,-3000.0,0.0003758,32]
[322837299,1713379952776,-3000.0,0.0003759,32]
[322837300,1713379952801,-3000.0,0.000376,32]
[322837301,1713379952826,-3000.0,0.0003761,32]
[322837302,1713379952850,-3000.0,0.0003762,32]
[322837303,1713379952876,-3000.0,0.0003763,32]
[322837304,1713379952901,-3000.0,0.0003764,32]
[322837305,1713379952926,-4576.668766,0.0003765,32]
[322837306,1713379952953,-34000.83356365,0.00038,30]
[322837307,1713379952978,-500.0,0.00038356,30]
[322837308,1713379953002,-500.0,0.00038356,30]
[322837309,1713379953026,-500.0,0.00038356,30]
[322837310,1713379953051,-500.0,0.00038356,30]
[322837311,1713379953076,-500.0,0.00038356,30]
[322837312,1713379953101,-500.0,0.00038356,30]
[322837313,1713379953128,-500.0,0.00038356,30]
[322837314,1713379953153,-500.0,0.00038356,30]
[322837315,1713379953177,-500.0,0.00038356,30]
[322837316,1713379953202,-500.0,0.00038356,30]
[322837317,1713379953227,-500.0,0.00038356,30]
[322837318,1713379953254,-500.0,0.00038356,30]
[322837319,1713379953278,-500.0,0.00038356,30]
[322837320,1713379953305,-536.84700076,0.00038356,30]
[322837321,1713379953330,-500.0,0.00038356,30]
[322837322,1713379953355,-507.78846085,0.00038356,30]
[322837323,1713379953382,-500.0,0.00038356,30]
[322837324,1713379953407,-500.0,0.00038356,30]
[322837325,1713379953434,-500.0,0.00038356,30]
[322837326,1713379953458,-500.0,0.00038356,30]
[322837327,1713379953482,-500.0,0.00038356,30]
[322837328,1713379953506,-500.0,0.00038356,30]
[322837329,1713379953532,-500.0,0.00038356,30]
[322837330,1713379953557,-500.0,0.00038356,30]
[322837331,1713379953582,-500.0,0.00038356,30]
[322837332,1713379953607,-500.0,0.00038356,30]
[322837333,1713379953633,-500.0,0.00038356,30]
[322837334,1713379953662,-500.0,0.00038356,30]
[322837335,1713379953687,-500.0,0.00038356,30]
[322837336,1713379953712,-500.0,0.00038356,30]
[322837337,1713379953737,-500.0,0.00038356,30]
[322837338,1713379953764,-500.0,0.00038356,30]
[322837339,1713379953789,-500.0,0.00038356,30]
[322837340,1713379953814,-500.0,0.00038356,30]
[322837341,1713379953840,-500.0,0.00038356,30]
[322837342,1713379953866,-500.0,0.00038356,30]
[322837343,1713379953892,-500.0,0.00038356,30]
[322837344,1713379953918,-601.1275557,0.00038356,30]
[322837345,1713379953944,-683.65,0.00038356,30]
[322837346,1713379953970,-683.65,0.00038356,30]
[322837347,1713379953995,-683.65,0.00038356,30]
[322837348,1713379954019,-683.65,0.00038356,30]
[322837349,1713379954043,-683.65,0.00038356,30]
[322837350,1713379954069,-683.65,0.00038356,30]
[322837351,1713379954093,-683.65,0.00038356,30]
[322837352,1713379954117,-683.65,0.00038356,30]
[322837353,1713379954142,-683.65,0.00038356,30]
[322837354,1713379954167,-683.65,0.00038356,30]
[322837355,1713379954192,-683.65,0.00038356,30]
[322837356,1713379954216,-683.65,0.00038356,30]
[322837357,1713379954242,-683.65,0.00038356,30]
[322837358,1713379954271,-683.65,0.00038356,30]
[322837359,1713379954296,-683.65,0.00038356,30]
[322837360,1713379954321,-683.65,0.00038356,30]
[322837361,1713379954347,-683.65,0.00038356,30]
[322837362,1713379954373,-683.65,0.00038356,30]
[322837363,1713379954397,-683.65,0.00038356,30]
[322837364,1713379954422,-683.65,0.00038356,30]
[322837365,1713379954448,-683.65,0.00038356,30]
[322837366,1713379954474,-683.65,0.00038356,30]
[322837367,1713379954499,-683.65,0.00038356,30]
[322837368,1713379954524,-683.68279817,0.00038356,30]
[322837369,1713379954550,-500.0,0.00038356,30]
[322837370,1713379954576,-500.0,0.00038356,30]
[322837371,1713379954601,-500.0,0.00038356,30]
[322837372,1713379954629,-500.0,0.00038356,30]
[322837373,1713379954656,-500.0,0.00038356,30]
[322837374,1713379954684,-500.0,0.00038356,30]
[322837375,1713379954712,-500.0,0.00038356,30]
[322837376,1713379954739,-500.0,0.00038356,30]
[322837377,1713379954867,-500.0,0.00038356,30]
[322837378,1713379954898,-500.0,0.00038356,30]
[322837379,1713379954924,-500.0,0.00038356,30]
[322837380,1713379954950,-500.0,0.00038356,30]
[322837381,1713379954977,-175.96832369,0.00038356,30]
[322837382,1713379955006,-21487.58,0.00038356,30]
[322837383,1713379955034,-21487.58,0.00038356,30]
[322837384,1713379955063,-21487.58,0.00038356,30]
[322837385,1713379955092,-21487.58,0.00038356,30]
[322837386,1713379955120,-21487.58,0.00038356,30]
[322837387,1713379955148,-21487.58,0.00038356,30]
[322837388,1713379955177,-21487.58,0.00038356,30]
[322837389,1713379955206,-21487.58,0.00038356,30]
[322837390,1713379955234,-21487.58,0.00038356,30]
[322837391,1713379955261,-21487.58,0.00038356,30]
[322837392,1713379955290,-21487.58,0.00038356,30]
[322837393,1713379955321,-21487.58,0.00038356,30]
[322837394,1713379955349,-21487.58,0.00038356,30]
[322837395,1713379955378,-21487.58,0.00038356,30]
[322837396,1713379955407,-21487.58,0.00038356,30]
[322837397,1713379955433,-21487.58,0.00038356,30]
[322837398,1713379955459,-21487.58,0.00038356,30]
[322837399,1713379955486,-21487.58,0.00038356,30]
[322837400,1713379955513,-21487.58,0.00038356,30]
[322837401,1713379955538,-21487.58,0.00038356,30]
[322837402,1713379955564,-21487.58,0.00038356,30]
[322837403,1713379955591,-21487.58,0.00038356,30]
[322837404,1713379955619,-21487.58,0.00038356,30]
[322837405,1713379955646,-21487.60000305,0.00038356,30]
[322837406,1713379955676,-500.0,0.00038356,30]
[322837407,1713379955703,-399.3831436,0.00038356,30]
[322837408,1713379955730,-500.0,0.00038356,30]
[322837409,1713379955757,-500.0,0.00038356,30]
[322837410,1713379955784,-500.0,0.00038356,30]
[322837411,1713379955811,-500.0,0.00038356,30]
[322837412,1713379955838,-500.0,0.00038356,30]
[322837413,1713379955866,-500.0,0.00038356,30]
[322837414,1713379955892,-500.0,0.00038356,30]
[322837415,1713379955918,-500.0,0.00038356,30]
[322837416,1713379955943,-500.0,0.00038356,30]
[322837417,1713379955970,-500.0,0.00038356,30]
[322837418,1713379955996,-500.0,0.00038356,30]
[322837419,1713379956022,-500.0,0.00038356,30]
[322837420,1713379956049,-500.0,0.00038356,30]
[322837421,1713379956074,-590.56121617,0.00038356,30]
[322837422,1713379956108,-165.0,0.0003987,35]
[322837423,1713379956146,-165.0,0.0003988,35]
[322837424,1713379956176,-165.0,0.0003989,35]
[322837425,1713379956210,-156.0,0.00039964,35]
[322837426,1713379956245,-156.0,0.00039974,35]
[322837427,1713379956277,-156.0,0.00039984,35]
[322837428,1713379956310,-1306.0,0.0004007,35]
[322837429,1713379956343,-1306.0,0.0004008,35]
[322837430,1713379956379,-175.0,0.0004009,35]
[322837431,1713379956414,-1306.0,0.0004009,35]
[322837576,1713381032311,-350.65607497,0.00024992,2]
[322837614,1713381038303,-587.23766237,0.00024992,2]
[322837616,1713381038312,-188.96976676,0.00024992,2]
[322837618,1713381038322,-7858.55367278,0.00024992,2]
[322837619,1713381038332,-521.03498526,0.00024993,2]
[322837621,1713381038341,-688.59429255,0.00024993,2]
[322837623,1713381038350,-243.24834116,0.00024993,2]
[322837625,1713381038360,-1875.79814985,0.00024993,2]
[322837627,1713381038370,-354.39971412,0.00024994,2]
[322837628,1713381038379,-156.84586358,0.00024994,2]
[322837629,1713381038389,-523.80732363,0.00024994,4]
[322837630,1713381038398,-158.857458,0.00024995,2]
[322837631,1713381038408,-300.0,0.00024996,2]
[322837632,1713381038417,-467.87279548,0.00024996,2]
[322837633,1713381038427,-2125.76560283,0.00024997,2]
[322837634,1713381038436,-168.983947,0.00025008,2]
[322837635,1713381038445,-200.0,0.00025457,15]
[322837636,1713381038455,-200.0,0.00025616,2]
[322837637,1713381038467,-168.397386,0.00026212,2]
[322837638,1713381038476,-309.70578029,0.00027,2]
[322837639,1713381038485,-332.07459253,0.00027,2]
[322837640,1713381038494,-200.695342,0.00027397,2]
[322837641,1713381038503,-166.666666,0.00027397,2]
[322837642,1713381038512,-1000.0,0.00027397,2]
[322837643,1713381038522,-473.357422,0.00027397,2]
[322837644,1713381038531,-420.0,0.00027496,2]
[322837645,1713381038541,-2000.0,0.000279,2]
[322837646,1713381038550,-275.89155344,0.00027938,2]
[322837647,1713381038560,-8716.49175574,0.00027998,2]
[322837648,1713381038569,-1380.55315874,0.00027998,2]
[322837649,1713381038578,-500.0,0.00027999,2]
[322837650,1713381038587,-500.0,0.00027999,2]
[322837651,1713381038596,-375.41455169,0.00027999,2]
[322837652,1713381038606,-500.0,0.00027999,2]
[322837653,1713381038615,-278.34992065,0.00027999,2]
[322837654,1713381038625,-500.0,0.00027999,2]
[322837655,1713381038634,-500.0,0.00027999,2]
[322837656,1713381038643,-255.48911511,0.00027999,2]
[322837657,1713381038652,-80000.0,0.00028,2]
[322837658,1713381038662,-166.666666,0.00028038,2]
[322837659,1713381038671,-809.92549857,0.00028139,2]
[322837660,1713381038680,-166.666666,0.00028679,2]
[322837661,1713381038690,-3729.33559342,0.0002877,2]
[322837662,1713381038699,-37525.28742271,0.00029,2]
[322837663,1713381038708,-5000.0,0.00029,2]
[322837664,1713381038719,-166.666666,0.00029321,2]
[322837665,1713381038729,-275.8915534,0.00029429,2]
[322837666,1713381038739,-629.49627493,0.00029546,2]
[322837667,1713381038748,-1790.54442132,0.0002978,10]
[322837668,1713381038758,-5313.02764777,0.000299,2]
[322837669,1713381038768,-268.61764502,0.000299,2]
[322837670,1713381038777,-268.61764499,0.000299,2]
[322837671,1713381038786,-268.61764499,0.000299,2]
[322837672,1713381038930,-268.61764499,0.000299,2]
[322837673,1713381038941,-268.61764499,0.000299,2]
[322837674,1713381038950,-268.61764499,0.000299,2]
[322837675,1713381038962,-268.61764499,0.000299,2]
[322837676,1713381038975,-268.61764499,0.000299,2]
[322837677,1713381038985,-268.61764499,0.000299,2]
[322837678,1713381038995,-268.61764499,0.000299,2]
[322837679,1713381039005,-268.61764499,0.000299,2]
[322837680,1713381039016,-268.61764499,0.000299,2]
[322837681,1713381039026,-268.61764499,0.000299,2]
[322837682,1713381039036,-166.666666,0.00029962,2]
[322837683,1713381039046,-395.57307798,0.00029999,2]
[322837684,1713381039057,-367.31431724,0.00029999,2]
[322837685,1713381039067,-500.0,0.00029999,2]
[322837686,1713381039078,-500.0,0.00029999,2]
[322837687,1713381039087,-500.0,0.00029999,2]
[322837688,1713381039097,-500.0,0.00029999,2]
[322837689,1713381039107,-500.0,0.00029999,2]
[322837690,1713381039117,-500.0,0.00029999,2]
[322837691,1713381039127,-500.0,0.00029999,2]
[322837692,1713381039137,-500.0,0.00029999,2]
[322837693,1713381039147,-500.0,0.00029999,2]
[322837694,1713381039157,-500.0,0.00029999,2]
[322837695,1713381039166,-500.0,0.00029999,2]
[322837696,1713381039176,-500.0,0.00029999,2]
[322837697,1713381039186,-500.0,0.00029999,2]
[322837698,1713381039195,-476.96134607,0.00029999,2]
[322837699,1713381039204,-500.0,0.00029999,2]
[322837700,1713381039216,-111615.95319034,0.0003,2]
[322837701,1713381039226,-240.0,0.0003,2]
[322837702,1713381039235,-587.0,0.00030245,2]
[322837703,1713381039244,-166.666666,0.00030603,2]
[322837704,1713381039254,-320.4553623,0.000308,10]
[322837705,1713381039264,-275.8915534,0.00030919,2]
[322837706,1713381039274,-417.0,0.00030967,2]
[322837707,1713381039286,-620.47481375,0.00031023,2]
[322837708,1713381039295,-191.18536531,0.00032,4]
[322837709,1713381039305,-5000.0,0.00032,2]
[322837710,1713381039315,-275.8915534,0.0003241,2]
[322837711,1713381039324,-188.35397327,0.000325,4]
[322837712,1713381039334,-5200.0,0.000329,9]
[322837713,1713381039345,-240.0,0.00033,2]
[322837714,1713381039355,-240.0,0.00033,2]
[322837715,1713381039364,-200.695342,0.00033165,2]
[322837716,1713381039374,-473.357422,0.00033165,2]
[322837717,1713381039383,-823.0,0.0003327,2]
[322837718,1713381039391,-2000.0,0.000337,7]
[322837719,1713381039402,-153.0,0.00033888,2]
[322837720,1713381039411,-275.8915534,0.000339,2]
[322837721,1713381039421,-3968.17260111,0.00033953,2]
[322837722,1713381039430,-417.0,0.00033967,2]
[322837723,1713381039440,-153.0,0.0003398,2]
[322837724,1713381039449,-267.8118792,0.0003398,2]
[322837725,1713381039460,-153.0,0.0003398,2]
[322837726,1713381039469,-153.0,0.0003398,2]
[322837727,1713381039479,-153.0,0.0003398,2]
[322837728,1713381039488,-153.0,0.0003398,2]
[322837729,1713381039497,-153.0,0.0003398,2]
[322837730,1713381039507,-153.0,0.0003398,2]
[322837731,1713381039516,-153.0,0.0003398,2]
[322837732,1713381039527,-153.0,0.0003398,2]
[322837733,1713381039536,-153.0,0.0003398,2]
[322837734,1713381039546,-153.0,0.0003398,2]
[322837735,1713381039556,-153.0,0.0003398,2]
[322837736,1713381039565,-153.0,0.0003398,2]
[322837737,1713381039576,-240.9602944,0.00033995,4]
[322837738,1713381039586,-354.8418199,0.00033998,4]
[322837739,1713381039595,-183.73588792,0.00033998,4]
[322837740,1713381039604,-574.59242208,0.00033998,4]
[322837741,1713381039612,-36377.05361472,0.00034,5]
[322837742,1713381039707,-3648.72872491,0.00034,5]
[322837770,1713381041976,-563.87316233,0.00024991,2]
[322837771,1713381041986,-46.89683767,0.00034,5]
[322837876,1713381043628,-529.26915917,0.00034,5]
[322838263,1713382238490,-581.89075799,0.00025477,4]
[322838265,1713382238499,-602.61216035,0.00025574,2]
[322838267,1713382238509,-158.857458,0.00025574,2]
[322838269,1713382238518,-351.3027513,0.00025574,2]
[322838271,1713382238527,-521.03498526,0.00025575,2]
[322838273,1713382238536,-1226.41129313,0.00025576,2]
[322838700,1713382246680,-553.47970987,0.00025476,2]
[322838751,1713383438647,-467.87279548,0.00022649,2]
[322838752,1713383438657,-523.80732363,0.00022649,4]
[322838754,1713383438666,-521.03498526,0.00022649,2]
[322838755,1713383438675,-937.89373734,0.0002265,2]
[322838757,1713383438685,-688.59429255,0.0002265,2]
[322838759,1713383438694,-158.857458,0.00022651,2]
[322838760,1713383438706,-241.20667916,0.00022652,2]
[322838762,1713383438715,-300.0,0.00022652,2]
[322838763,1713383438724,-300.0,0.00022652,2]
[322838764,1713383438733,-188.96976676,0.00022653,2]
[322838765,1713383438743,-7858.55367278,0.00022653,2]
[322838766,1713383438752,-156.84586358,0.00022653,2]
[322838767,1713383438761,-1875.79814985,0.00022653,2]
[322838768,1713383438772,-2125.76560283,0.00022654,2]
[322838769,1713383438781,-354.39971412,0.00022655,2]
[322838770,1713383438791,-168.788426,0.00022686,2]
[322838771,1713383438801,-220.3956989,0.0002273,2]
[322838772,1713383438809,-200.0,0.00022799,2]
[322838773,1713383438818,-243.24834116,0.00023475,2]
[322838774,1713383438828,-3687.23135227,0.00023476,2]
[322838775,1713383438837,-776.92671133,0.00024558,2]
[322838776,1713383438846,-200.0,0.00024658,2]
[322838777,1713383438855,-5833.2338895,0.00024658,10]
[322838778,1713383438864,-200.0,0.00024658,15]
[322838779,1713383438874,-420.0,0.00024917,2]
[322838780,1713383438883,-3062.64298016,0.00025476,2]
[322838781,1713383438892,-10102.36070328,0.00025476,2]
[322838782,1713383438902,-154.86062544,0.00025476,2]
[322838783,1713383438911,-809.45408939,0.00025479,2]
[322838784,1713383439031,-2000.0,0.00026699,2]
[322838785,1713383439041,-629.47270447,0.00026753,2]
[322838786,1713383439051,-8716.49175574,0.00026798,2]
[322838787,1713383439060,-1380.55315874,0.00026799,2]
[322838788,1713383439069,-375.41455169,0.00026799,2]
[322838789,1713383439078,-500.0,0.00026799,2]
[322838790,1713383439087,-500.0,0.00026799,2]
[322838791,1713383439096,-500.0,0.00026799,2]
[322838792,1713383439106,-477.30137503,0.00026799,2]
[322838793,1713383439115,-500.0,0.00026799,2]
[322838794,1713383439125,-278.34992065,0.00026799,2]
[322838795,1713383439135,-500.0,0.00026799,2]
[322838796,1713383439143,-37975.83621273,0.000268,2]
[322838797,1713383439153,-429.41391304,0.000269,2]
[322838798,1713383439163,-6255.79167979,0.00027,60]
[322838799,1713383439172,-332.07459253,0.00027,2]
[322838800,1713383439181,-309.70578029,0.00027,2]
[322838801,1713383439190,-327.8248124,0.00027384,2]
[322838802,1713383439199,-168.513191,0.00027397,2]
[322838803,1713383439208,-337.614814,0.00027397,2]
[322838804,1713383439217,-218.07271,0.00027397,2]
[322838805,1713383439228,-166.666666,0.00027397,2]
[322838806,1713383439238,-208.030299,0.00027397,2]
[322838807,1713383439247,-1000.0,0.00027397,2]
[322838808,1713383439256,-587.0,0.00027409,2]
[322838809,1713383439266,-80000.0,0.00028,2]
[322838810,1713383439277,-166.666666,0.00028038,2]
[322838811,1713383439286,-168.397386,0.00028128,2]
[322838812,1713383439294,-3687.23135227,0.00028476,2]
[322838813,1713383439303,-429.41391301,0.0002865,2]
[322838814,1713383439312,-166.666666,0.00028679,2]
[322838815,1713383439321,-253.12061258,0.00028707,5]
[322838816,1713383439330,-5000.0,0.00029,2]
[322838817,1713383439339,-166.666666,0.00029321,2]
[322838818,1713383439349,-168.966404,0.00029725,2]
[322838819,1713383439358,-274.37373738,0.000299,2]
[322838820,1713383439367,-274.37373738,0.000299,2]
[322838821,1713383439376,-274.37373738,0.000299,2]
[322838822,1713383439385,-274.37373738,0.000299,2]
[322838823,1713383439395,-274.37373738,0.000299,2]
[322838824,1713383439404,-274.37373738,0.000299,2]
[322838825,1713383439413,-274.37373738,0.000299,2]
[322838826,1713383439422,-274.37373738,0.000299,2]